Cogmind - Beta 13 @@@ ROGUE MODE // 2024.07.29 @ 13:58:41 Player: Sgt. SmokeWeed Result: Destroyed by D-53 Grenadier with Mini Grenade Launcher Performance ------------- Evolutions (0) 0 Regions Visited (2) 400 Robots Destroyed (10) 50 Value Destroyed (253) 253 Prototype IDs (0) 0 Alien Tech Used (0) 0 Bonus (0) 0 TOTAL SCORE: 703 Bonus ------- None Cogmind --------- Core Integrity 0/250 Matter 248/300 Energy 100/100 System Corruption 0% Temperature Cool (0) Movement Core (50) Location -10/Mines Parts ------- > --- POWER (1) -------- (None) > --- PROPULSION (2) --- (None) > --- UTILITY (2) ------ (None) > --- WEAPON (2) ------- Hammer > --- INVENTORY (5) ---- Light Ion Engine Medium Laser Peak State ------------ > --- POWER ------------ Light Ion Engine > --- PROPULSION ------- Light Treads Light Treads > --- UTILITY ---------- (None) > --- WEAPON ----------- Light Assault Rifle Light Assault Rifle > --- INVENTORY -------- (None) [Rating: 5] Favorites ----------- Power Light Ion Engine Engine Light Ion Engine Propulsion Light Treads Treads Light Treads Utility None Weapon Hammer Energy Gun Medium Laser Ballistic Gun Light Assault Rifle Launcher Grenade Launcher Impact Weapon Hammer Build | -11 -10 -10 ------- Run | Yrd Mat Min Slots Evolved . | . . . Power . | . . . Propulsion . | . . . Utility . | . . . Weapon . | . . . Parts Attached 14 | 5 8 1 Power 2 | 1 . 1 Engine 2 | 1 . 1 Core . | . . . Reactor . | . . . Propulsion 3 | 2 1 . Treads 3 | 2 1 . Leg . | . . . Wheel . | . . . Hover . | . . . Flight . | . . . Utility . | . . . Device . | . . . Storage . | . . . Processor . | . . . Hackware . | . . . Protection . | . . . Artifact . | . . . Weapon 9 | 2 7 . Energy Gun 2 | . 2 . Energy Cannon . | . . . Ballistic Gun 2 | 2 . . Ballistic Cannon . | . . . Launcher 4 | . 4 . Special Weapon . | . . . Impact Weapon 1 | . 1 . Slashing Weapon . | . . . Piercing Weapon . | . . . Special Melee Weapon . | . . . Unidentified Prototypes . | . . . Parts Lost 5 | . 1 4 Power 1 | . . 1 Propulsion 2 | . . 2 Utility . | . . . Weapon 2 | . 1 1 Highest Loss Streak 2 | . 1 2 To Critical Strikes . | . . . Average Slot Usage (%) 53 | . 67 42 Engine 14 | . 14 14 Treads 19 | . 27 14 Energy Gun 1 | . 2 . Ballistic Gun 3 | . 7 . Launcher 5 | . 11 . Impact Weapon 10 | . 5 14 Naked Turns . | . . . Heaviest Build 8 | 5 8 8 Greatest Support 40 | 40 40 40 Greatest Overweight (x) 2 | . . 2 Average Overweight (x) . | . . . Largest Inventory Capacity 5 | 5 5 5 Average Capacity 5 | 5 5 5 Most Carried 2 | . 1 2 Average Carried 1 | . . 1 Final Capacity 5 | 5 5 5 Final Carried 2 | . 1 2 Class Distribution -------------------- 100% | Mutant Dominant Class ---------------- Mutant | -10/Materials Mutant | -10/Mines Resources | -11 -10 -10 ----------- Run | Yrd Mat Min Matter Collected 389 | 200 114 75 Remotely . | . . . Salvage Created 251 | . 176 75 Parts 13 | . 11 2 Haulers Intercepted . | . . . Recyclers Shooed 1 | . 1 . Parts Field Recycled . | . . . Retrieved Matter . | . . . Parts Self-Destructed . | . . . Prevented . | . . . Kills | -11 -10 -10 ------- Run | Yrd Mat Min Combat Hostiles Destroyed 6 | . 4 2 Melee 1 | . . 1 Guns 2 | . 2 . AOE 3 | . 2 1 Classes Destroyed 4 | . 4 . Builder 2 | . 2 . Tunneler 1 | . 1 . Recycler 1 | . 1 . Grunt 6 | . 4 2 Best Kill Streak 5 | . 5 2 Combat Bots Only 2 | . 2 2 Max Kills in Single Turn 2 | . 2 1 Gunslinging . | . . . Exploded 1 | . 1 1 Melee 1 | . . 1 Uniques/NPCs Destroyed . | . . . Combat | -11 -10 -10 -------- Run | Yrd Mat Min Hostile Shots Fired 40 | . 18 22 Missed 9 | . 7 2 Damage Taken 719 | . 210 509 Core 254 | . 11 243 Absorbed by Shields . | . . . Core Remaining (%) 100 | 100 . . Volleys Fired 19 | . 18 1 Largest 2 | . 2 1 Hottest 100 | . 100 30 Shots Fired 26 | . 25 1 Gun 14 | . 14 . Cannon . | . . . Launcher 12 | . 11 1 Special . | . . . Kinetic 6 | . 6 . Thermal 8 | . 8 . Explosive 12 | . 11 1 Electromagnetic . | . . . Robot Hit Streak 4 | . 4 4 Robot Miss Streak 2 | . 2 . Penetration Max . | . . . Secondary Targets . | . . . Shots Hit Robots 22 | . 15 7 Core Hits 19 | . 17 2 Critical Kills . | . . . Critical Parts Destroyed 1 | . . 1 Critical Strikes 1 | . . 1 Smash 1 | . . 1 Melee Attacks 10 | . . 10 Impact 10 | . . 10 Slashing . | . . . Piercing . | . . . Sneak Attacks 1 | . . 1 Combat Hostiles . | . . . Follow-up Attacks . | . . . Damage Inflicted 860 | . 604 256 Guns 110 | . 110 . Cannons . | . . . Explosions 586 | . 494 92 Melee 164 | . . 164 Ramming . | . . . Kinetic 35 | . 35 . Thermal 75 | . 75 . Explosive 586 | . 494 92 Electromagnetic . | . . . Impact 164 | . . 164 Slashing . | . . . Piercing . | . . . Highest Corruption . | . . . Average Corruption . | . . . Corruption Purged . | . . . Corruption Blocked . | . . . Overload Shots . | . . . Overflow Damage 56 | . . 56 Projectiles . | . . . Explosions 1 | . . 1 Melee 55 | . . 55 Knockbacks 1 | . . 1 Impact 1 | . . 1 Kinetic . | . . . Secondary . | . . . Self-Inflicted Damage 101 | . 78 23 Shots 3 | . 2 1 Rammed . | . . . Targets Rammed . | . . . Kicked . | . . . Crushed . | . . . Highest Temperature 60 | . 60 9 Average Temperature 23 | . 24 9 Received Heat Transfer 204 | . 90 114 Siege Activations . | . . . Robots Corrupted . | . . . Combat Hostiles . | . . . Parts Fried . | . . . Impact Corruptions 2 | . . 2 Robots Melted . | . . . Combat Hostiles . | . . . Parts Melted . | . . . Heat Transferred 222 | . 222 . Parts Sabotaged . | . . . Parts Stolen . | . . . Parts Stripped . | . . . Power Chain Reactions . | . . . Alert | -11 -10 -10 ------- Run | Yrd Mat Min Peak Influence 186 | . 186 112 Initial 72 | . . 72 Average 99 | . 108 108 Maximum Alert Level . | . . . Low Security (%) 100 | 100 100 100 Level 1 . | . . . Level 2 . | . . . Level 3 . | . . . Level 4 . | . . . Level 5 . | . . . High Security . | . . . Max Security . | . . . Squads Dispatched 2 | . 2 . Investigation . | . . . Extermination . | . . . Reinforcement 2 | . 2 . Assault . | . . . Garrison . | . . . Intercept . | . . . Searches Triggered . | . . . Construction Impeded . | . . . Haulers Reinforced . | . . . Active Scanning Responses . | . . . Cargo Convoy Interrupts . | . . . Stealth | -11 -10 -10 --------- Run | Yrd Mat Min Distress Signals . | . . . Communications Jammed . | . . . Distress Signals . | . . . Times Spotted 12 | . 6 6 Peak Tracking Total 20 | . 2 20 Tactical Retreats . | . . . Traps | -11 -10 -10 ------- Run | Yrd Mat Min Traps Triggered 3 | . 3 . Indirectly . | . . . Trap Hack Attempts . | . . . Triggered . | . . . Disarmed . | . . . Reprogrammed . | . . . Reused . | . . . Traps Extracted . | . . . Installed . | . . . Triggered . | . . . Machines | -11 -10 -10 ---------- Run | Yrd Mat Min Machines Disabled . | . . . Max in Single Turn . | . . . Machines Repaired . | . . . Machines Dismantled . | . . . Machines Sabotaged . | . . . Overloaded Fab Kills . | . . . Hacking | -11 -10 -10 --------- Run | Yrd Mat Min Machines Accessed 1 | . 1 . Terminals 1 | . 1 . Fabricators . | . . . Repair Stations . | . . . Recycling Units . | . . . Scanalyzers . | . . . Garrison Access . | . . . Total Hacks 2 | . 2 . Successful 1 | . 1 . Failed 1 | . 1 . Catastrophic 1 | . 1 . Database Lockouts . | . . . Manual 2 | . 2 . Terminals 2 | . 2 . Fabricators . | . . . Repair Stations . | . . . Recycling Units . | . . . Scanalyzers . | . . . Garrison Access . | . . . Terminal Hacks 1 | . 1 . Branch Access Points 1 | . 1 . Fabricator Hacks . | . . . Repair Station Hacks . | . . . Recycling Unit Hacks . | . . . Scanalyzer . | . . . Garrison Access Hacks . | . . . Unauthorized Hacks . | . . . Terminals . | . . . Fabricators . | . . . Repair Stations . | . . . Recycling Units . | . . . Scanalyzers . | . . . Garrison Access . | . . . Data Cores Recovered . | . . . Used . | . . . Hacking Detections 1 | . 1 . Full Trace Events . | . . . Feedback Events . | . . . Feedback Blocked . | . . . Robot Schematics Acquired . | . . . Robots Built . | . . . Authchips . | . . . Time . | . . . Total Robot Build Rating . | . . . Part Schematics Acquired . | . . . Parts Built . | . . . Authchips . | . . . Time . | . . . Total Part Build Rating . | . . . Parts Repaired . | . . . Time . | . . . Parts Recycled . | . . . Recycled Matter . | . . . Retrieved Matter . | . . . Retrieved Components . | . . . Parts Scanalyzed . | . . . Part Schematics Acquired . | . . . Parts Damaged . | . . . Bothacking | -11 -10 -10 ------------ Run | Yrd Mat Min Used RIF Installer . | . . . Robots Hacked . | . . . Non-combat . | . . . Combat . | . . . Robot Hacks Applied . | . . . Relay Couplers Released . | . . . Fabnet Peak Effective % . | . . . Robots Rewired . | . . . Allies Hacked . | . . . Hacks Repelled . | . . . Allies | -11 -10 -10 -------- Run | Yrd Mat Min Total Allies . | . . . Largest Group . | . . . Highest-Rated Group . | . . . Highest-Rated Ally . | . . . Total Orders . | . . . Ally Attacks . | . . . Total Damage . | . . . Kills . | . . . Allies Corrupted . | . . . Allies Melted . | . . . Intel | -11 -10 -10 ------- Run | Yrd Mat Min Robot Analysis Total . | . . . Derelict Logs Recovered . | . . . Drone Launches . | . . . Drone Recoveries . | . . . Exploration | -11 -10 -10 ------------- Run | Yrd Mat Min Turns Passed 732 | 58 292 382 Spaces Moved 416 | 48 148 220 Core 29 | 23 . 6 Treads 387 | 25 148 214 Legs . | . . . Wheels . | . . . Hover . | . . . Flight . | . . . Fastest Speed 50 | 50 160 150 Average Speed 153 | 107 160 159 Slowest Speed 160 | 160 160 160 Overloaded Moves . | . . . Propulsion Burnouts . | . . . Robots Hopped . | . . . Cave-ins Triggered . | . . . Exploration Rate (%) 28 | 4 28 54 Regions Visited 2 Branch Regions 1 Pre-discovered Areas . | . . . Known Exits Taken 1 | . 1 . Unknown Exits Taken 1 | 1 . . Scrap Searched . | . . . Spaces Dug . | . . . Terrain Destroyed 56 | . 46 10 Melee . | . . . Projectile . | . . . AOE 56 | . 46 10 Terrain Rammed . | . . . Walls Destroyed . | . . . Machines Disabled . | . . . Actions | -11 -10 -10 --------- Run | Yrd Mat Min Total 461 | 52 177 232 Wait . | . . . Move 414 | 47 147 220 Hop . | . . . Pick Up 2 | . 2 . Fast Attach 11 | 5 6 . Attach 1 | . 1 . Detach . | . . . Swap 2 | . 1 1 Drop 2 | . 2 . Fire 19 | . 18 1 Melee 10 | . . 10 Ram . | . . . Kick . | . . . Crush . | . . . Escape Stasis . | . . . Rewire . | . . . Trap . | . . . Miscellaneous . | . . . Route ------- -11/Scrapyard -10/Materials (discovered 3 exits: [*Mat] / *Min x2) -10/Mines History --------- Turn | Location | Event 4 | -11/Scrapyard | Discovered new exit (range 12) 59 | -11/Scrapyard | Entered Materials 175 | -10/Materials | Identified exit to Mines 303 | -10/Materials | Discovered new exit (range 7) 307 | -10/Materials | Build established: Mutant 351 | -10/Materials | Entered Mines 647 | -10/Mines | Assembled infested the area 728 | -10/Mines | Core integrity fell below 50% 730 | -10/Mines | Core integrity fell below 20% 733 | -10/Mines | Destroyed by D-53 Grenadier with Mini Grenade Launcher Last Messages --------------- Destroyed Lgt. Treads. G-47 Trooper suffers critical hit (Smash). Destroyed Aluminum Leg. G-47 Trooper system corrupted by crushing effect. G-47 Trooper IFF system glitched. T-07 Excavator destroyed. Destroyed Particle Gun. G-47 Trooper system corrupted by crushing effect. G-47 Trooper destroyed. Acquired 43 matter. Acquired 32 matter. The unstable cave ceiling collapses. K-01 Serf collects debris. T-07 Excavator is excavating. Sneak attack on R-06 Scavenger. R-06 Scavenger knocked back. ALERT: Infestation in the mines, dispatching Demolisher response squad. Lgt. Treads destroyed. The unstable cave ceiling collapses. Ion Engine destroyed. Map ----- +----------------------------------------------------+ | ?????????????????????????# ! ! ?????????????????? | | ?????????????????????????# ! ! ?????????????????? | | ?????????????????????????? !??????????????????? | | ?????????????????????????? !!!??????????????????? | | ?????????????????????????? ??????????????????? | | ??????????????????????????? ???????????????????? | | ??????????????????????????? ????????###????????? | | ???????????????????????????# #????????# ##???????? | | ?????????####??????????????# #???????? #???????? | | ???????? ########### ###?????## #???????? | | ???????? #????## #???????? | | ???????? ###### #???????? | | ???????? ## ######### #???????? | | ????????????????????????????# ##??????? | | ????????????????????????????####### ###????? | | ?????????????????????????????????## ##???? | | ???????????????????????????????### #???? | | ??????????????????????????????## ## ##???? | | ??????????????????????????????# ##?###????? | | ?????????????????????####?????# ##?????????? | | ?????????????????????? t ###### #??????????? | | ?????????????????????## # # #??????????? | | ?????????????????????# ##??????????? | | ????????????????????## ##???????????? | | ????????????????????# ##????????????? | | ?????????????????????# d@ ##????????????? | | ????????????????????## #####????????? | | ????????????????????# #####????? | | ????????????????????## ##???? | | ????????????????????# # ? | | ????????????????????## # """ ## ? | | ?????????????????????#### ##### """ ##??????? | | ????????????????????????######## """ #???????? | | ????????????????????????## ### #???????? | | ????????????????????##### ## #???????? | | ????????????????????# ##???????? | | ????????????????????# #?# ####????####? | | ???????????????????## ### ##??????## ## | | ???????????????????# #???????# # | | ???????????????????# ##?????## | | ???????????????????# ######## #??#### | | ???????????????##### #??????## #### | | ???????????????# #???????# ## ### | | ???????????????# #####??????## ##?## | | ???????????????# #??????????# #??## | | ???????????????# #??????????# #?## | | ???????????????# #??????????## #?# | | ???????????????# #???????????## ##?# | | ??????????????## #????????????# #####??## | | ?????????????## ###??????????# ###???????#### | +----------------------------------------------------+ Best States ------------- Heat Dissipation 25 Energy Generation 10 Energy Capacity 250 Matter Stores 250 Matter Capacity 300 Sight Range 16 Terrain Scan Density 10 Evasion (%) 50 Recoil Reduction 2 Item Schematics ----------------- None Robot Schematics ------------------ None Fabricated ------------ Nothing Alien Tech Used ----------------- None Achievements -------------- None Challenges ------------ None Game ------ Seed ClaymoresModifiedJammer Manual? 0 Play Time 00:05:41 Cumulative 53.3 hours Start 2024.07.29 @ 13:54:31 End 2024.07.29 @ 13:58:41 Sessions 1 Manual Loads 0 Difficulty Rogue Special Mode None Game No. 124 Rogue 54 Adventurer 70 Explorer 0 Win Type - Total 0 Types 0/0/0/0/0/0/0/0/0 Lore% 34 Gallery% 38 Achievement% 31 Wizard Run 0 Options --------- Layout 0 ASCII 0 Keyboard 0 Movement Mouse Keybinds 0 Fullscreen 1 Font 24/Smallcaps Map View 76x50 Zoom Use 0% Tactical HUD 0 Map Filters NONE Filters NONE Steam 1 RUN: 907457ae-f1e1-40b9-b214-9347355bb78b